fUST/lending_fUST_20250210
["ID","MTS","AMOUNT","RATE_DAILY","PERIOD"]
[352562438,1739167861731,-252.28147987,0.000161,2]
[352562439,1739167861740,-151.0,0.000161,2]
[352562440,1739167861749,-151.0,0.000161,2]
[352562441,1739167861759,-3000.0,0.0001611,2]
[352562442,1739167861768,-3000.0,0.0001612,2]
[352562443,1739167861777,-1193.37403399,0.00016125,2]
[352562444,1739167861786,-600.0,0.00016125,2]
[352562445,1739167861796,-3000.0,0.0001613,2]
[352562446,1739167861805,-5880.103499,0.0001614,2]
[352562447,1739167861814,-500.0,0.00016164,2]
[352562448,1739167861823,-717.91,0.00016164,2]
[352562449,1739167861832,-1193.37403399,0.00016225,2]
[352562450,1739167861843,-1193.37403399,0.00016325,2]
[352562451,1739167861852,-171.08,0.00016355,2]
[352562452,1739167861862,-1193.37403399,0.00016425,2]
[352562453,1739167861871,-500.0,0.00016438,2]
[352562454,1739167861880,-500.0,0.00016438,2]
[352562455,1739167861890,-1004.36415154,0.00016438,7]
[352562456,1739167861899,-500.0,0.00016438,2]
[352562457,1739167861909,-500.0,0.00016438,2]
[352562458,1739167861918,-312.0,0.0001649,2]
[352562459,1739167861928,-160.0,0.00016499,2]
[352562460,1739167861938,-35757.78054597,0.000165,5]
[352562461,1739167861948,-4513.03418634,0.000165,5]
[352562462,1739167861957,-159313.46674757,0.000165,2]
[352562463,1739167862158,-3203.91,0.00011917,2]
[352562464,1739167862168,-320.61777566,0.00012054,2]
[352562465,1739167862178,-3203.91,0.00012054,2]
[352562466,1739167862188,-3203.91,0.00012191,2]
[352562467,1739167862198,-3203.91,0.00012328,2]
[352562468,1739167862208,-218.19187371,0.00015707,2]
[352562469,1739167862217,-150298.7083497,0.000165,2]
[352562470,1739167862417,-500.0,0.00010958,2]
[352562471,1739167862430,-3203.91,0.00012465,2]
[352562472,1739167862439,-3203.91,0.00012602,2]
[352562473,1739167862449,-3203.91,0.00012739,2]
[352562474,1739167862458,-3203.91,0.00012876,2]
[352562475,1739167862468,-3203.91,0.00013013,2]
[352562476,1739167862480,-3203.91,0.0001315,2]
[352562477,1739167862490,-3203.91,0.00013287,2]
[352562478,1739167862499,-3203.91,0.00013424,2]
[352562479,1739167862509,-3203.91,0.00013561,2]
[352562480,1739167862519,-3203.91,0.00013698,2]
[352562481,1739167862528,-3203.91,0.00013835,2]
[352562482,1739167862538,-2329.89537168,0.00013972,2]
[352562484,1739168732140,-1224.45281055,9.657e-05,2]
[352562485,1739168833123,-5000.0,9.56e-05,2]
[352562486,1739168833144,-1172.72936562,9.657e-05,2]
[352562487,1739168833165,-300.0,9.753e-05,2]
[352562488,1739168833185,-10548.44154001,9.754e-05,2]
[352562489,1739168838137,-374.0927677,9.754e-05,2]
[352562490,1739168854100,-2489.89599664,9.657e-05,2]
[352562493,1739168949098,-890.1,9.55e-05,2]
[352562494,1739168949118,-1167.28212366,9.657e-05,2]
[352562495,1739168949139,-300.0,9.753e-05,2]
[352562496,1739168949160,-9056.23988229,9.754e-05,2]
[352562497,1739168949181,-3256.4286342,0.00010095,2]
[352562498,1739168949200,-7931.4876512,0.00010245,2]
[352562499,1739168949221,-1352.69937989,0.00010419,2]
[352562500,1739168951267,-115.71460375,0.00010419,2]
[352562501,1739168951288,-362.96259597,0.00010685,2]
[352562502,1739168954099,-13738.55416573,0.00010185,2]
[352562544,1739169036428,-289.79312527,0.00010185,2]
[352562546,1739169036438,-37.03740403,0.00010685,2]
[352562548,1739169036447,-500.0,0.00010957,2]
[352562550,1739169036457,-286.19476611,0.00010957,2]
[352562553,1739169036466,-500.0,0.00010957,2]
[352562556,1739169036475,-500.0,0.00010957,2]
[352562558,1739169036484,-288.43643271,0.00010957,2]
[352562645,1739169038147,-14.96088957,0.00010957,2]
[352562646,1739169038157,-500.0,0.00010957,2]
[352562647,1739169038167,-500.0,0.00010958,2]
[352562648,1739169038176,-500.0,0.00010958,2]
[352562649,1739169038185,-500.0,0.00010958,2]
[352562650,1739169038195,-500.0,0.00010958,2]
[352562651,1739169038204,-500.0,0.00010958,2]
[352562652,1739169038213,-500.0,0.00010958,2]
[352562653,1739169038223,-502.45733714,0.00010958,2]
[352562654,1739169038232,-500.0,0.00010958,2]
[352562655,1739169038242,-502.41811982,0.00010958,2]
[352562656,1739169038252,-500.0,0.00010958,2]
[352562657,1739169038261,-500.0,0.00010958,2]
[352562658,1739169038271,-500.0,0.00010958,2]
[352562659,1739169038280,-597.37550975,0.00010958,2]
[352562660,1739169038290,-500.0,0.00010958,2]
[352562661,1739169038302,-500.0,0.00010958,2]
[352562662,1739169038312,-500.0,0.00010958,2]
[352562663,1739169038322,-500.0,0.00010958,2]
[352562664,1739169038331,-501.30350988,0.00010958,2]
[352562665,1739169038340,-500.0,0.00010958,2]
[352562666,1739169038349,-500.0,0.00010958,2]
[352562667,1739169038359,-500.0,0.00010958,2]
[352562668,1739169038369,-500.0,0.00010958,2]
[352562669,1739169038378,-500.0,0.00010958,2]
[352562670,1739169038388,-500.0,0.00010958,2]
[352562671,1739169038398,-500.0,0.00010958,2]
[352562672,1739169038408,-500.0,0.00010958,2]
[352562673,1739169038417,-500.0,0.00010958,2]
[352562674,1739169038427,-500.0,0.00010958,2]
[352562675,1739169038436,-500.0,0.00010958,2]
[352562676,1739169038446,-500.0,0.00010958,2]
[352562677,1739169038456,-240.26,0.00010958,2]
[352562678,1739169038466,-500.0,0.00010958,2]
[352562679,1739169038475,-500.0,0.00010958,2]
[352562680,1739169038485,-500.0,0.00010958,2]
[352562681,1739169038495,-500.0,0.00010958,2]
[352562682,1739169038504,-500.0,0.00010958,2]
[352562683,1739169038514,-500.0,0.00010958,2]
[352562684,1739169038523,-500.0,0.00010958,2]
[352562685,1739169038533,-500.0,0.00010958,2]
[352562686,1739169038543,-500.0,0.00010958,2]
[352562687,1739169038553,-500.0,0.00010958,2]
[352562688,1739169038563,-500.0,0.00010958,2]
[352562689,1739169038573,-500.0,0.00010958,2]
[352562690,1739169038582,-500.0,0.00010958,2]
[352562691,1739169038592,-500.0,0.00010958,2]
[352562692,1739169038601,-500.0,0.00010958,2]
[352562693,1739169038611,-501.89730355,0.00010958,2]
[352562694,1739169038620,-581.23380853,0.00010958,2]
[352562695,1739169038630,-500.0,0.00010958,2]
[352562696,1739169038639,-500.0,0.00010958,2]
[352562697,1739169038648,-500.0,0.00010958,2]
[352562698,1739169038658,-500.0,0.00010958,2]
[352562699,1739169038667,-260.66385936,0.00010958,2]
[352562700,1739169038676,-500.0,0.00010958,2]
[352562701,1739169038685,-500.0,0.00010958,2]
[352562702,1739169038695,-500.64,0.00010958,2]
[352562703,1739169038704,-500.0,0.00010958,2]
[352562704,1739169038713,-500.0,0.00010958,2]
[352562705,1739169038722,-500.0,0.00010958,2]
[352562706,1739169038732,-500.0,0.00010958,2]
[352562707,1739169038741,-500.0,0.00010958,2]
[352562708,1739169038750,-500.0,0.00010958,2]
[352562709,1739169038759,-500.0,0.00010958,2]
[352562710,1739169038768,-500.0,0.00010958,2]
[352562711,1739169038781,-455.42794334,0.00010958,2]
[352562712,1739169038791,-500.0,0.00010958,2]
[352562713,1739169038800,-500.0,0.00010958,2]
[352562714,1739169038809,-605.24,0.00010958,2]
[352562715,1739169038937,-500.0,0.00010958,2]
[352562716,1739169038948,-500.0,0.00010958,2]
[352562717,1739169038957,-500.0,0.00010958,2]
[352562718,1739169038967,-500.0,0.00010958,2]
[352562719,1739169038976,-500.0,0.00010958,2]
[352562720,1739169038987,-500.0,0.00010958,2]
[352562721,1739169039000,-500.0,0.00010958,2]
[352562722,1739169039009,-500.0,0.00010958,2]
[352562723,1739169039018,-500.0,0.00010958,2]
[352562724,1739169039028,-500.0,0.00010958,2]
[352562725,1739169039038,-500.0,0.00010958,2]
[352562726,1739169039047,-500.0,0.00010958,2]
[352562727,1739169039057,-543.73435508,0.00010958,2]
[352562728,1739169039067,-500.0,0.00010958,2]
[352562729,1739169039076,-500.0,0.00010958,2]
[352562730,1739169039085,-500.0,0.00010958,2]
[352562731,1739169039095,-500.0,0.00010958,2]
[352562732,1739169039104,-500.0,0.00010958,2]
[352562733,1739169039113,-500.0,0.00010958,2]
[352562734,1739169039123,-500.0,0.00010958,2]
[352562735,1739169039133,-500.0,0.00010958,2]
[352562736,1739169039143,-500.0,0.00010958,2]
[352562737,1739169039153,-500.0,0.00010958,2]
[352562738,1739169039163,-500.0,0.00010958,2]
[352562739,1739169039172,-500.0,0.00010958,2]
[352562740,1739169039182,-500.0,0.00010958,2]
[352562741,1739169039191,-500.0,0.00010958,2]
[352562742,1739169039201,-500.0,0.00010958,2]
[352562743,1739169039210,-500.0,0.00010958,2]
[352562744,1739169039220,-500.0,0.00010958,2]
[352562745,1739169039230,-500.0,0.00010958,2]
[352562746,1739169039239,-500.0,0.00010958,2]
[352562747,1739169039249,-500.0,0.00010958,2]
[352562748,1739169039259,-525.14593161,0.00010958,2]
[352562749,1739169039268,-500.0,0.00010958,2]
[352562750,1739169039278,-500.0,0.00010958,2]
[352562751,1739169039288,-629.50489902,0.00010958,2]
[352562752,1739169039297,-503.59341216,0.00010958,2]
[352562753,1739169039307,-501.21147551,0.00010958,2]
[352562754,1739169039316,-500.0,0.00010958,2]
[352562755,1739169039326,-500.0,0.00010958,2]
[352562756,1739169039336,-500.0,0.00010958,2]
[352562757,1739169039345,-500.0,0.00010958,2]
[352562758,1739169039355,-315.18886037,0.00010958,2]
[352562759,1739169039364,-500.0,0.00010958,2]
[352562760,1739169039373,-500.0,0.00010958,2]
[352562761,1739169039383,-5146.31,0.00010958,2]
[352562762,1739169039393,-500.0,0.00010958,2]
[352562763,1739169039402,-500.0,0.00010958,2]
[352562764,1739169039411,-501.48933018,0.00010958,2]
[352562765,1739169039420,-500.0,0.00010958,2]
[352562766,1739169039430,-500.0,0.00010958,2]
[352562767,1739169039440,-500.0,0.00010958,2]
[352562768,1739169039449,-500.0,0.00010958,2]
[352562769,1739169039458,-885.77,0.00010958,2]
[352562770,1739169039467,-413.08,0.00010958,2]
[352562771,1739169039476,-517.66,0.00010958,2]
[352562772,1739169039486,-582.2,0.00010958,2]
[352562773,1739169039496,-500.0,0.00010958,2]
[352562774,1739169039505,-500.0,0.00010958,2]
[352562775,1739169039514,-500.0,0.00010958,2]
[352562776,1739169039523,-500.0,0.00010958,2]
[352562777,1739169039533,-500.0,0.00010958,2]
[352562778,1739169039543,-500.0,0.00010958,2]
[352562779,1739169039553,-500.0,0.00010958,2]
[352562780,1739169039563,-636.86,0.00010958,2]
[352562781,1739169039573,-508.02951522,0.00010958,2]
[352562782,1739169039583,-12942.0,0.00010958,2]
[352562783,1739169039592,-500.0,0.00010958,2]
[352562784,1739169039602,-500.0,0.00010958,2]
[352562785,1739169039612,-500.0,0.00010958,2]
[352562786,1739169039621,-500.0,0.00010958,2]
[352562787,1739169039631,-500.0,0.00010958,2]
[352562788,1739169039641,-500.0,0.00010958,2]
[352562789,1739169039650,-695.39,0.00010958,2]
[352562790,1739169039659,-500.0,0.00010958,2]
[352562791,1739169039668,-500.0,0.00010958,2]
[352562792,1739169039678,-500.0,0.00010958,2]
[352562793,1739169039687,-500.0,0.00010958,2]
[352562794,1739169039696,-500.0,0.00010958,2]
[352562795,1739169039705,-544.41,0.00010958,2]
[352562796,1739169039714,-500.0,0.00010958,2]
[352562797,1739169039724,-1530.09,0.00010958,2]
[352562798,1739169039733,-500.0,0.00010958,2]
[352562799,1739169039743,-500.0,0.00010958,2]
[352562800,1739169039752,-518.19188215,0.00010958,2]
[352562801,1739169039762,-640.72,0.00010958,2]
[352562802,1739169039772,-500.87367359,0.00010958,2]
[352562803,1739169039781,-974.33,0.00010958,2]
[352562804,1739169039790,-500.0,0.00010958,2]
[352562805,1739169039799,-409.40052937,0.00010958,2]
[352562806,1739169039808,-529.56420561,0.00010958,2]
[352562807,1739169039818,-500.0,0.00010958,2]
[352562808,1739169039827,-500.0,0.00010958,2]
[352562809,1739169039836,-500.0,0.00010958,2]
[352562810,1739169039850,-500.0,0.00010958,2]
[352562811,1739169039859,-500.0,0.00010958,2]
[352562812,1739169039869,-500.0,0.00010958,2]
[352562813,1739169039878,-564.82,0.00010958,2]
[352562814,1739169039888,-500.0,0.00010958,2]
[352562815,1739169039898,-502.04264711,0.00010958,2]
[352562816,1739169039907,-437.11816085,0.00010958,2]
[352562817,1739169039916,-500.0,0.00010958,2]
[352562818,1739169039925,-500.0,0.00010958,2]
[352562819,1739169039934,-500.0,0.00010958,2]
[352562820,1739169039944,-500.0,0.00010958,2]
[352562821,1739169039953,-500.0,0.00010958,2]
[352562822,1739169039962,-500.0,0.00010958,2]
[352562823,1739169039971,-501.36615242,0.00010958,2]
[352562824,1739169039980,-3075.74,0.00010958,2]
[352562825,1739169039989,-500.0,0.00010958,2]
[352562826,1739169039998,-500.0,0.00011095,2]
[352562827,1739169040008,-500.0,0.00011095,2]
[352562828,1739169040017,-500.0,0.00011095,2]
[352562829,1739169040026,-500.0,0.00011095,2]
[352562830,1739169040035,-5146.31,0.00011095,2]
[352562831,1739169040043,-500.0,0.00011095,2]
[352562832,1739169040053,-500.0,0.00011095,2]
[352562833,1739169040062,-885.77,0.00011095,2]
[352562834,1739169040072,-582.2,0.00011095,2]
[352562835,1739169040082,-500.0,0.00011095,2]
[352562836,1739169040091,-500.0,0.00011095,2]
[352562837,1739169040101,-500.0,0.00011095,2]
[352562838,1739169040111,-500.0,0.00011095,2]
[352562839,1739169040120,-500.0,0.00011095,2]
[352562840,1739169040130,-500.0,0.00011095,2]
[352562841,1739169040139,-500.0,0.00011095,2]
[352562842,1739169040148,-636.86,0.00011095,2]
[352562843,1739169040159,-12942.0,0.00011095,2]
[352562844,1739169040168,-500.0,0.00011095,2]
[352562845,1739169040178,-500.0,0.00011095,2]
[352562846,1739169040187,-500.0,0.00011095,2]
[352562847,1739169040196,-500.0,0.00011095,2]
[352562848,1739169040205,-500.0,0.00011095,2]
[352562849,1739169040215,-500.0,0.00011095,2]
[352562850,1739169040224,-695.39,0.00011095,2]
[352562851,1739169040232,-500.0,0.00011095,2]
[352562852,1739169040242,-500.0,0.00011095,2]
[352562853,1739169040251,-500.0,0.00011095,2]
[352562854,1739169040260,-500.0,0.00011095,2]
[352562855,1739169040269,-544.41,0.00011095,2]
[352562856,1739169040278,-500.0,0.00011095,2]
[352562857,1739169040287,-1530.09,0.00011095,2]
[352562858,1739169040296,-500.0,0.00011095,2]
[352562859,1739169040306,-500.0,0.00011095,2]
[352562860,1739169040315,-640.72,0.00011095,2]
[352562861,1739169040324,-974.33,0.00011095,2]
[352562862,1739169040333,-500.0,0.00011095,2]
[352562863,1739169040342,-180.92926019,0.00011132,2]
[352562864,1739169040351,-500.0,0.00011232,2]
[352562865,1739169040360,-500.0,0.00011232,2]
[352562866,1739169040369,-621.97,0.00011232,2]
[352562867,1739169040378,-5146.31,0.00011232,2]
[352562868,1739169040387,-500.0,0.00011232,2]
[352562869,1739169040397,-364.33765703,0.00011232,2]
[352562870,1739169040406,-885.77,0.00011232,2]
[352562871,1739169040416,-582.2,0.00011232,2]
[352562872,1739169040425,-500.0,0.00011232,2]
[352562873,1739169040435,-500.0,0.00011232,2]
[352562874,1739169040444,-500.0,0.00011232,2]
[352562875,1739169040453,-500.0,0.00011232,2]
[352562876,1739169040463,-500.0,0.00011232,2]
[352562877,1739169040472,-500.0,0.00011232,2]
[352562878,1739169040481,-500.0,0.00011232,2]
[352562879,1739169040490,-636.86,0.00011232,2]
[352562880,1739169040500,-12942.0,0.00011232,2]
[352562881,1739169040511,-500.0,0.00011232,2]
[352562882,1739169040519,-500.0,0.00011232,2]
[352562883,1739169040529,-500.0,0.00011232,2]
[352562884,1739169040538,-500.0,0.00011232,2]
[352562885,1739169040547,-500.0,0.00011232,2]
[352562886,1739169040556,-1732.80593711,0.00011232,2]
[352562887,1739169040566,-695.39,0.00011232,2]
[352562888,1739169040575,-500.0,0.00011232,2]
[352562889,1739169040586,-500.0,0.00011232,2]
[352562890,1739169040595,-544.41,0.00011232,2]
[352562891,1739169040605,-500.0,0.00011232,2]
[352562892,1739169040614,-1530.09,0.00011232,2]
[352562893,1739169040623,-500.0,0.00011232,2]
[352562894,1739169040632,-500.0,0.00011232,2]
[352562895,1739169040641,-640.72,0.00011232,2]
[352562896,1739169040651,-974.33,0.00011232,2]
[352562897,1739169040660,-500.0,0.00011232,2]
[352562898,1739169040669,-500.0,0.00011369,2]
[352562899,1739169040679,-500.0,0.00011369,2]
[352562900,1739169040688,-5146.31,0.00011369,2]
[352562901,1739169040698,-500.0,0.00011369,2]
[352562902,1739169040707,-885.77,0.00011369,2]
[352562903,1739169040717,-582.2,0.00011369,2]
[352562904,1739169040727,-500.0,0.00011369,2]
[352562905,1739169040736,-500.0,0.00011369,2]
[352562906,1739169040745,-500.0,0.00011369,2]
[352562907,1739169040755,-500.0,0.00011369,2]
[352562908,1739169040764,-500.0,0.00011369,2]
[352562909,1739169040773,-500.0,0.00011369,2]
[352562910,1739169040783,-339.4,0.00011369,2]
[352562911,1739169040792,-636.86,0.00011369,2]
[352562912,1739169040801,-12942.0,0.00011369,2]
[352562913,1739169040811,-500.0,0.00011369,2]
[352562914,1739169040820,-500.0,0.00011369,2]
[352562915,1739169040829,-500.0,0.00011369,2]
[352562916,1739169040838,-500.0,0.00011369,2]
[352562917,1739169040848,-500.0,0.00011369,2]
[352562918,1739169040860,-695.39,0.00011369,2]
[352562919,1739169040874,-500.0,0.00011369,2]
[352562920,1739169040883,-500.0,0.00011369,2]
[352562921,1739169040893,-544.41,0.00011369,2]
[352562922,1739169040902,-500.0,0.00011369,2]
[352562923,1739169040912,-1530.09,0.00011369,2]
[352562924,1739169040922,-500.0,0.00011369,2]
[352562925,1739169040932,-500.0,0.00011369,2]
[352562926,1739169040947,-640.72,0.00011369,2]
[352562927,1739169040957,-974.33,0.00011369,2]
[352562928,1739169040966,-500.0,0.00011369,2]
[352562929,1739169040976,-527.43655362,0.00011388,2]
[352562930,1739169040986,-500.0,0.00011506,2]
[352562931,1739169040995,-500.0,0.00011506,2]
[352562932,1739169041004,-5146.31,0.00011506,2]
[352562933,1739169041014,-500.0,0.00011506,2]
[352562934,1739169041023,-885.77,0.00011506,2]
[352562935,1739169041034,-582.2,0.00011506,2]
[352562936,1739169041044,-500.0,0.00011506,2]
[352562937,1739169041053,-500.0,0.00011506,2]
[352562938,1739169041065,-500.0,0.00011506,2]
[352562939,1739169041074,-500.0,0.00011506,2]
[352562940,1739169041084,-500.0,0.00011506,2]
[352562941,1739169041094,-500.0,0.00011506,2]
[352562942,1739169041104,-636.86,0.00011506,2]
[352562943,1739169041113,-12942.0,0.00011506,2]
[352562944,1739169041123,-500.0,0.00011506,2]
[352562945,1739169041132,-500.0,0.00011506,2]
[352562946,1739169041142,-500.0,0.00011506,2]
[352562947,1739169041153,-500.0,0.00011506,2]
[352562948,1739169041162,-647.1860366,0.00011506,2]
[352562949,1739169041172,-695.39,0.00011506,2]
[352562950,1739169041182,-318.6,0.00011506,2]
[352562951,1739169041192,-500.0,0.00011506,2]
[352562952,1739169041202,-544.41,0.00011506,2]
[352562953,1739169041211,-500.0,0.00011506,2]
[352562954,1739169041221,-1530.09,0.00011506,2]
[352562955,1739169041231,-500.0,0.00011506,2]
[352562956,1739169041242,-375.12,0.00011506,2]
[352562957,1739169041251,-640.72,0.00011506,2]
[352562958,1739169041260,-974.33,0.00011506,2]
[352562959,1739169041270,-500.0,0.00011506,2]
[352562960,1739169041280,-67671.14527295,0.00011614,2]
[352562961,1739169041289,-500.0,0.00011643,2]
[352562962,1739169041299,-500.0,0.00011643,2]
[352562963,1739169041310,-5146.31,0.00011643,2]
[352562964,1739169041319,-500.0,0.00011643,2]
[352562965,1739169041328,-885.77,0.00011643,2]
[352562966,1739169041338,-582.2,0.00011643,2]
[352562967,1739169041348,-500.0,0.00011643,2]
[352562968,1739169041358,-500.0,0.00011643,2]
[352562969,1739169041368,-500.0,0.00011643,2]
[352562970,1739169041377,-500.0,0.00011643,2]
[352562971,1739169041387,-500.0,0.00011643,2]
[352562972,1739169041396,-500.0,0.00011643,2]
[352562973,1739169041406,-636.86,0.00011643,2]
[352562974,1739169041415,-12942.0,0.00011643,2]
[352562975,1739169041424,-255.84,0.00011643,2]
[352562976,1739169041435,-500.0,0.00011643,2]
[352562977,1739169041445,-500.0,0.00011643,2]
[352562978,1739169041454,-500.0,0.00011643,2]
[352562979,1739169041463,-695.39,0.00011643,2]
[352562980,1739169041474,-500.0,0.00011643,2]
[352562981,1739169041483,-544.41,0.00011643,2]
[352562982,1739169041492,-500.0,0.00011643,2]
[352562983,1739169041502,-1530.09,0.00011643,2]
[352562984,1739169041511,-428.26,0.00011643,2]
[352562985,1739169041520,-640.72,0.00011643,2]
[352562986,1739169041530,-974.33,0.00011643,2]
[352562987,1739169041540,-500.0,0.00011643,2]
[352562988,1739169041549,-500.0,0.0001178,2]
[352562989,1739169041561,-500.0,0.0001178,2]
[352562990,1739169041570,-5146.31,0.0001178,2]
[352562991,1739169041579,-500.0,0.0001178,2]
[352562992,1739169041589,-885.77,0.0001178,2]
[352562993,1739169041599,-582.2,0.0001178,2]
[352562994,1739169041608,-500.0,0.0001178,2]
[352562995,1739169041618,-500.0,0.0001178,2]
[352562996,1739169041628,-500.0,0.0001178,2]
[352562997,1739169041638,-500.0,0.0001178,2]
[352562998,1739169041647,-500.0,0.0001178,2]
[352562999,1739169041657,-500.0,0.0001178,2]
[352563000,1739169041667,-636.86,0.0001178,2]
[352563001,1739169041676,-12942.0,0.0001178,2]
[352563002,1739169041686,-500.0,0.0001178,2]
[352563003,1739169041695,-500.0,0.0001178,2]
[352563004,1739169041705,-500.0,0.0001178,2]
[352563005,1739169041715,-695.39,0.0001178,2]
[352563006,1739169041725,-500.0,0.0001178,2]
[352563007,1739169041734,-544.41,0.0001178,2]
[352563008,1739169041744,-500.0,0.0001178,2]
[352563009,1739169041753,-1530.09,0.0001178,2]
[352563010,1739169041762,-640.72,0.0001178,2]
[352563011,1739169041772,-974.33,0.0001178,2]
[352563012,1739169041781,-500.0,0.0001178,2]
[352563013,1739169041791,-500.0,0.00011917,2]
[352563014,1739169041800,-500.0,0.00011917,2]
[352563015,1739169041811,-5146.31,0.00011917,2]
[352563016,1739169041820,-500.0,0.00011917,2]
[352563017,1739169041829,-885.77,0.00011917,2]
[352563018,1739169041839,-582.2,0.00011917,2]
[352563019,1739169041853,-500.0,0.00011917,2]
[352563020,1739169041862,-500.0,0.00011917,2]
[352563021,1739169041872,-500.0,0.00011917,2]
[352563022,1739169041882,-532.68,0.00011917,2]
[352563023,1739169041892,-626.93,0.00011917,2]
[352563024,1739169041902,-500.0,0.00011917,2]
[352563025,1739169041911,-636.86,0.00011917,2]
[352563026,1739169042017,-12942.0,0.00011917,2]
[352563027,1739169042039,-500.0,0.00011917,2]
[352563028,1739169042048,-540.87633829,0.00011917,2]
[352563029,1739169042059,-500.0,0.00011917,2]
[352563030,1739169042068,-695.39,0.00011917,2]
[352563031,1739169042078,-167.1,0.00011917,2]
[352563032,1739169042087,-544.41,0.00011917,2]
[352563033,1739169042097,-500.0,0.00011917,2]
[352563034,1739169042106,-1530.09,0.00011917,2]
[352563035,1739169042115,-640.72,0.00011917,2]
[352563036,1739169042124,-974.33,0.00011917,2]
[352563037,1739169042133,-500.0,0.00011917,2]
[352563038,1739169042143,-165.85445475,0.00012053,2]
[352563039,1739169042152,-500.0,0.00012053,2]
[352563040,1739169042161,-500.0,0.00012053,2]
[352563041,1739169042171,-500.0,0.00012053,2]
[352563042,1739169042180,-467.52804118,0.00012053,2]
[352563043,1739169042189,-536.07,0.00012054,2]
[352563044,1739169042198,-500.0,0.00012054,2]
[352563045,1739169042208,-5146.31,0.00012054,2]
[352563046,1739169042217,-500.0,0.00012054,2]
[352563047,1739169042227,-885.77,0.00012054,2]
[352563048,1739169042236,-582.2,0.00012054,2]
[352563049,1739169042245,-500.0,0.00012054,2]
[352563050,1739169042255,-500.0,0.00012054,2]
[352563051,1739169042264,-500.0,0.00012054,2]
[352563052,1739169042273,-500.0,0.00012054,2]
[352563053,1739169042282,-636.86,0.00012054,2]
[352563054,1739169042292,-12942.0,0.00012054,2]
[352563055,1739169042301,-500.0,0.00012054,2]
[352563056,1739169042312,-500.0,0.00012054,2]
[352563057,1739169042321,-695.39,0.00012054,2]
[352563058,1739169042331,-544.41,0.00012054,2]
[352563059,1739169042340,-500.0,0.00012054,2]
[352563060,1739169042350,-1530.09,0.00012054,2]
[352563061,1739169042359,-640.72,0.00012054,2]
[352563062,1739169042368,-974.33,0.00012054,2]
[352563063,1739169042377,-500.0,0.00012054,2]
[352563064,1739169042387,-500.0,0.00012118,2]
[352563065,1739169042396,-500.0,0.00012191,2]
[352563066,1739169042406,-5146.31,0.00012191,2]
[352563067,1739169042416,-500.0,0.00012191,2]
[352563068,1739169042425,-885.77,0.00012191,2]
[352563069,1739169042435,-582.2,0.00012191,2]
[352563070,1739169042445,-500.0,0.00012191,2]
[352563071,1739169042455,-500.0,0.00012191,2]
[352563072,1739169042465,-265.06111763,0.00012191,2]
[352563073,1739169042474,-500.0,0.00012191,2]
[352563074,1739169042483,-636.86,0.00012191,2]
[352563075,1739169042493,-12942.0,0.00012191,2]